fUST/lending_fUST_20250520
["ID","MTS","AMOUNT","RATE_DAILY","PERIOD"]
[361725413,1747731038752,-4807.64,0.00016438,2]
[361725414,1747731038762,-430.0,0.00016438,2]
[361725415,1747731038772,-430.0,0.00016438,2]
[361725416,1747731038783,-430.0,0.00016438,2]
[361725417,1747731038792,-400.0,0.00016438,2]
[361725418,1747731038802,-430.0,0.00016438,2]
[361725419,1747731038812,-400.0,0.00016438,2]
[361725420,1747731038822,-430.0,0.00016438,2]
[361725421,1747731038832,-2070.17,0.00016438,2]
[361725422,1747731038842,-400.31865747,0.00016438,2]
[361725423,1747731038852,-430.0,0.00016438,2]
[361725424,1747731038862,-400.0,0.00016438,2]
[361725425,1747731038872,-884.2,0.00016438,2]
[361725426,1747731038882,-430.0,0.00016438,2]
[361725427,1747731038891,-151.0,0.00016438,2]
[361725428,1747731038901,-430.0,0.00016438,2]
[361725429,1747731038911,-151.0,0.00016438,2]
[361725430,1747731038921,-1471.5,0.00016438,2]
[361725431,1747731038932,-151.0,0.00016438,2]
[361725432,1747731038942,-151.0,0.00016438,2]
[361725433,1747731038954,-430.0,0.00016438,2]
[361725434,1747731038964,-400.0,0.00016438,2]
[361725435,1747731038973,-151.0,0.00016438,2]
[361725436,1747731038983,-151.0,0.00016438,2]
[361725437,1747731038993,-151.0,0.00016438,2]
[361725438,1747731039002,-400.0,0.00016438,2]
[361725439,1747731039012,-151.0,0.00016438,2]
[361725440,1747731039021,-398.68629981,0.00016438,2]
[361725441,1747731039031,-151.0,0.00016438,2]
[361725442,1747731039040,-617.45,0.00016438,2]
[361725443,1747731039051,-151.0,0.00016438,2]
[361725444,1747731039061,-430.0,0.00016438,2]
[361725445,1747731039070,-151.0,0.00016438,2]
[361725446,1747731039080,-157.083192,0.00016438,2]
[361725447,1747731039090,-430.0,0.00016438,2]
[361725448,1747731039101,-450.0,0.00016438,2]
[361725449,1747731039112,-400.0,0.00016438,2]
[361725450,1747731039123,-430.0,0.00016438,2]
[361725451,1747731039136,-400.0,0.00016438,2]
[361725452,1747731039146,-430.0,0.00016438,2]
[361725453,1747731039157,-400.0,0.00016438,2]
[361725454,1747731039168,-3592.57,0.00016438,2]
[361725455,1747731039177,-796.97,0.00016438,2]
[361725456,1747731039187,-430.0,0.00016438,2]
[361725457,1747731039197,-400.0,0.00016438,2]
[361725458,1747731039206,-430.0,0.00016438,2]
[361725459,1747731039216,-430.0,0.00016438,2]
[361725460,1747731039226,-450.0,0.00016438,2]
[361725461,1747731039235,-430.0,0.00016438,2]
[361725462,1747731039245,-614.94,0.00016438,2]
[361725463,1747731039255,-2476.87473463,0.00016472,2]
[361725464,1747731039266,-500.0,0.00016473,2]
[361725465,1747731039275,-500.0,0.00016473,2]
[361725467,1747731039285,-500.0,0.00016473,2]
[361725469,1747731039296,-205.417408,0.00016473,2]
[361725471,1747731039305,-205.417408,0.00016473,2]
[361725472,1747731039315,-2476.87473463,0.00016542,2]
[361725474,1747731039325,-245.4903183,0.00016553,2]
[361725476,1747731039337,-500.0,0.0001661,2]
[361725478,1747731039347,-2476.87473463,0.00016612,2]
[361725480,1747731039356,-151.0,0.00016711,2]
[361725482,1747731039366,-160.994108,0.00016711,2]
[361725483,1747731039375,-258.053247,0.00016711,2]
[361725484,1747731039387,-258.053247,0.00016711,2]
[361725485,1747731039396,-160.994108,0.00016711,2]
[361725486,1747731039407,-151.0,0.00016711,2]
[361725487,1747731039417,-500.0,0.00016711,2]
[361725488,1747731039427,-500.0,0.00016711,2]
[361725489,1747731039437,-500.0,0.00016711,2]
[361725491,1747731039449,-500.0,0.00016711,2]
[361725492,1747731039458,-161.225624,0.00016711,2]
[361725493,1747731039469,-161.225624,0.00016711,2]
[361725494,1747731039480,-151.0,0.00016711,2]
[361725495,1747731039490,-430.0,0.00016712,2]
[361725496,1747731039500,-430.0,0.00016712,2]
[361725497,1747731039511,-430.0,0.00016712,2]
[361725498,1747731039522,-430.0,0.00016712,2]
[361725499,1747731039534,-430.0,0.00016712,2]
[361725500,1747731039545,-151.29366,0.00016712,2]
[361725502,1747731039555,-258.053247,0.00016712,2]
[361725504,1747731039564,-258.053247,0.00016712,2]
[361725505,1747731039574,-160.994108,0.00016712,2]
[361725507,1747731039583,-258.053247,0.00016712,2]
[361725508,1747731039593,-258.053247,0.00016712,2]
[361725509,1747731039603,-160.994108,0.00016712,2]
[361725510,1747731039614,-451.14,0.00016712,2]
[361725511,1747731039625,-151.0,0.00016712,2]
[361725512,1747731039636,-151.0,0.00016712,2]
[361725513,1747731039648,-151.0,0.00016712,2]
[361725514,1747731039658,-430.0,0.00016712,2]
[361725515,1747731039667,-370.822144,0.00016712,2]
[361725516,1747731039677,-370.822144,0.00016712,2]
[361725517,1747731039686,-370.822144,0.00016712,2]
[361725518,1747731039696,-370.822144,0.00016712,2]
[361725519,1747731039706,-430.0,0.00016712,2]
[361725521,1747731039718,-430.0,0.00016712,2]
[361725522,1747731039727,-430.0,0.00016712,2]
[361725523,1747731039737,-430.0,0.00016712,2]
[361725524,1747731039747,-430.0,0.00016712,2]
[361725525,1747731039757,-430.0,0.00016712,2]
[361725526,1747731039766,-470.0,0.00016712,2]
[361725527,1747731039776,-192.88,0.00016712,2]
[361725528,1747731039786,-430.0,0.00016712,2]
[361725529,1747731039797,-430.0,0.00016712,2]
[361725530,1747731039808,-420.0,0.00016712,2]
[361725531,1747731039817,-430.0,0.00016712,2]
[361725532,1747731039827,-430.0,0.00016712,2]
[361725533,1747731039837,-430.0,0.00016712,2]
[361725534,1747731039847,-430.0,0.00016712,2]
[361725535,1747731039857,-792.04,0.00016712,2]
[361725536,1747731039866,-165.91,0.00016712,2]
[361725537,1747731039878,-771.69,0.00016712,2]
[361725538,1747731039888,-470.0,0.00016712,2]
[361725539,1747731039898,-430.0,0.00016712,2]
[361725540,1747731039908,-370.0,0.00016712,2]
[361725541,1747731039919,-380.06460182,0.00016712,2]
[361725542,1747731039930,-420.0,0.00016712,2]
[361725543,1747731039939,-444.13,0.00016712,2]
[361725544,1747731039951,-470.0,0.00016712,2]
[361725545,1747731039961,-474.74337799,0.00016712,2]
[361725546,1747731039971,-446.59,0.00016712,2]
[361725547,1747731039981,-470.0,0.00016712,2]
[361725548,1747731039992,-470.0,0.00016712,2]
[361725549,1747731040001,-422.8025939,0.00016712,2]
[361725550,1747731040013,-371.58135414,0.00016712,2]
[361725551,1747731040023,-430.0,0.00016712,2]
[361725553,1747731040034,-420.0,0.00016712,2]
[361725555,1747731040044,-430.0,0.00016712,2]
[361725556,1747731040054,-470.0,0.00016712,2]
[361725557,1747731040065,-470.0,0.00016712,2]
[361725558,1747731040075,-430.0,0.00016712,2]
[361725559,1747731040085,-373.84699663,0.00016712,2]
[361725560,1747731040096,-474.75188349,0.00016712,2]
[361725561,1747731040106,-423.6857012,0.00016712,2]
[361725562,1747731040116,-422.14299781,0.00016712,2]
[361725563,1747731040125,-430.0,0.00016712,2]
[361725564,1747731040135,-151.0,0.00016712,2]
[361725565,1747731040145,-151.0,0.00016712,2]
[361725566,1747731040156,-430.0,0.00016712,2]
[361725567,1747731040166,-470.0,0.00016712,2]
[361725568,1747731040176,-430.0,0.00016712,2]
[361725569,1747731040186,-365.0,0.00016712,2]
[361725570,1747731040195,-430.0,0.00016712,2]
[361725571,1747731040205,-554.08782209,0.00016712,2]
[361725572,1747731040215,-632.4,0.00016712,2]
[361725573,1747731040225,-430.0,0.00016712,2]
[361725574,1747731040236,-470.0,0.00016712,2]
[361725575,1747731040247,-509.54,0.00016712,2]
[361725576,1747731040257,-370.0,0.00016712,2]
[361725577,1747731040267,-430.0,0.00016712,2]
[361725578,1747731040279,-430.0,0.00016712,2]
[361725579,1747731040290,-430.0,0.00016712,2]
[361725580,1747731040302,-430.0,0.00016712,2]
[361725581,1747731040313,-430.0,0.00016712,2]
[361725582,1747731040326,-430.0,0.00016712,2]
[361725583,1747731040343,-430.0,0.00016712,2]
[361725584,1747731040354,-430.0,0.00016712,2]
[361725585,1747731040365,-534.41,0.00016712,2]
[361725586,1747731040376,-161.225624,0.00016712,2]
[361725587,1747731040387,-161.225624,0.00016712,2]
[361725588,1747731040397,-151.0,0.00016712,2]
[361725589,1747731040407,-151.0,0.00016712,2]
[361725590,1747731040418,-151.0,0.00016712,2]
[361725591,1747731040428,-370.0,0.00016712,2]
[361725592,1747731040437,-151.0,0.00016712,2]
[361725593,1747731040447,-151.0,0.00016712,2]
[361725594,1747731040457,-151.0,0.00016712,2]
[361725595,1747731040468,-430.0,0.00016712,2]
[361725596,1747731040479,-430.0,0.00016712,2]
[361725597,1747731040491,-472.31751628,0.00016712,2]
[361725598,1747731040502,-470.0,0.00016712,2]
[361725599,1747731040512,-151.0,0.00016712,2]
[361725600,1747731040522,-151.0,0.00016712,2]
[361725601,1747731040532,-385.53762506,0.00016712,2]
[361725602,1747731040542,-151.0,0.00016712,2]
[361725603,1747731040553,-430.0,0.00016712,2]
[361725604,1747731040563,-231.809735,0.00016712,2]
[361725605,1747731040574,-151.0,0.00016712,2]
[361725606,1747731040585,-151.0,0.00016712,2]
[361725607,1747731040596,-430.0,0.00016712,2]
[361725608,1747731040606,-391.52853431,0.00016712,2]
[361725609,1747731040616,-430.0,0.00016712,2]
[361725610,1747731040626,-420.0,0.00016712,2]
[361725611,1747731040638,-430.0,0.00016712,2]
[361725612,1747731040649,-430.0,0.00016712,2]
[361725613,1747731040659,-430.0,0.00016712,2]
[361725614,1747731040669,-430.0,0.00016712,2]
[361725615,1747731040679,-486.68,0.00016712,2]
[361725616,1747731040689,-430.0,0.00016712,2]
[361725617,1747731040699,-430.0,0.00016712,2]
[361725618,1747731040709,-430.0,0.00016712,2]
[361725619,1747731040720,-430.0,0.00016712,2]
[361725620,1747731040730,-430.0,0.00016712,2]
[361725621,1747731040740,-430.0,0.00016712,2]
[361725622,1747731040750,-430.0,0.00016712,2]
[361725623,1747731040760,-430.0,0.00016712,2]
[361725624,1747731040770,-221.05847454,0.00016712,2]
[361725625,1747731040780,-823.04,0.00016712,2]
[361725626,1747731040789,-470.0,0.00016712,2]
[361725627,1747731040800,-430.0,0.00016712,2]
[361725628,1747731040809,-470.0,0.00016712,2]
[361725629,1747731040819,-370.0,0.00016712,2]
[361725630,1747731040829,-430.0,0.00016712,2]
[361725631,1747731040839,-470.0,0.00016712,2]
[361725632,1747731040850,-470.0,0.00016712,2]
[361725633,1747731040860,-430.0,0.00016712,2]
[361725634,1747731041008,-470.0,0.00016712,2]
[361725635,1747731041018,-400.88195381,0.00016712,2]
[361725636,1747731041029,-430.0,0.00016712,2]
[361725637,1747731041039,-430.0,0.00016712,2]
[361725638,1747731041049,-966.87,0.00016712,2]
[361725639,1747731041058,-460.44,0.00016712,2]
[361725640,1747731041067,-1701.32,0.00016712,2]
[361725641,1747731041079,-151.0,0.00016712,2]
[361725642,1747731041090,-151.0,0.00016712,2]
[361725643,1747731041101,-470.0,0.00016712,2]
[361725644,1747731041112,-470.0,0.00016712,2]
[361725645,1747731041123,-470.0,0.00016712,2]
[361725646,1747731041134,-430.0,0.00016712,2]
[361725647,1747731041145,-430.0,0.00016712,2]
[361725648,1747731041156,-430.0,0.00016712,2]
[361725649,1747731041165,-459.15,0.00016712,2]
[361725650,1747731041175,-430.0,0.00016712,2]
[361725651,1747731041187,-2370.11,0.00016712,2]
[361725652,1747731041198,-205.417408,0.00016712,2]
[361725653,1747731041208,-430.0,0.00016712,2]
[361725654,1747731041217,-205.417408,0.00016712,2]
[361725655,1747731041227,-430.0,0.00016712,2]
[361725656,1747731041237,-578.94,0.00016712,2]
[361725657,1747731041251,-205.417408,0.00016712,2]
[361725658,1747731041261,-470.0,0.00016712,2]
[361725659,1747731041272,-205.417408,0.00016712,2]
[361725660,1747731041283,-316.5559065,0.00016712,2]
[361725661,1747731041292,-205.417408,0.00016712,2]
[361725662,1747731041302,-205.417408,0.00016712,2]
[361725663,1747731041312,-430.0,0.00016712,2]
[361725664,1747731041323,-420.0,0.00016712,2]
[361725665,1747731041334,-625.7,0.00016712,2]
[361725666,1747731041344,-3187.58,0.00016712,2]
[361725667,1747731041356,-1067.96,0.00016712,2]
[361725668,1747731041366,-430.0,0.00016712,2]
[361725669,1747731041376,-470.0,0.00016712,2]
[361725670,1747731041386,-1170.88,0.00016712,2]
[361725671,1747731041396,-372.14020553,0.00016712,2]
[361725672,1747731041406,-470.0,0.00016712,2]
[361725673,1747731041417,-430.0,0.00016712,2]
[361725674,1747731041426,-1394.59,0.00016712,2]
[361725675,1747731041435,-430.0,0.00016712,2]
[361725676,1747731041445,-420.0,0.00016712,2]
[361725677,1747731041454,-430.0,0.00016712,2]
[361725678,1747731041464,-430.0,0.00016712,2]
[361725679,1747731041473,-430.0,0.00016712,2]
[361725680,1747731041482,-714.5,0.00016712,2]
[361725681,1747731041492,-153.104017,0.00016712,2]
[361725682,1747731041501,-430.0,0.00016712,2]
[361725683,1747731041511,-430.0,0.00016712,2]
[361725684,1747731041521,-414.0,0.00016712,2]
[361725685,1747731041531,-1023.23,0.00016712,2]
[361725686,1747731041540,-470.0,0.00016712,2]
[361725687,1747731041550,-470.0,0.00016712,2]
[361725688,1747731041560,-430.0,0.00016712,2]
[361725689,1747731041570,-845.18,0.00016712,2]
[361725690,1747731041579,-430.0,0.00016712,2]
[361725691,1747731041588,-430.0,0.00016712,2]
[361725692,1747731041598,-430.0,0.00016712,2]
[361725693,1747731041607,-430.0,0.00016712,2]
[361725694,1747731041618,-605.02,0.00016712,2]
[361725695,1747731041628,-430.0,0.00016712,2]
[361725696,1747731041638,-430.0,0.00016712,2]
[361725697,1747731041649,-430.0,0.00016712,2]
[361725698,1747731041660,-481.09,0.00016712,2]
[361725699,1747731041670,-270.0,0.00016712,2]
[361725700,1747731041680,-470.0,0.00016712,2]
[361725701,1747731041690,-430.0,0.00016712,2]
[361725702,1747731041699,-270.0,0.00016712,2]
[361725703,1747731041708,-430.0,0.00016712,2]
[361725704,1747731041719,-470.0,0.00016712,2]
[361725705,1747731041728,-1425.83,0.00016712,2]
[361725706,1747731041738,-430.0,0.00016712,2]
[361725707,1747731041747,-649.17,0.00016712,2]
[361725708,1747731041757,-270.0,0.00016712,2]
[361725709,1747731041767,-430.0,0.00016712,2]
[361725710,1747731041776,-270.0,0.00016712,2]
[361725711,1747731041786,-430.0,0.00016712,2]
[361725712,1747731041796,-683.89,0.00016712,2]
[361725713,1747731041805,-845.85,0.00016712,2]
[361725714,1747731041815,-175.167658,0.00016712,2]
[361725715,1747731041825,-524.36,0.00016712,2]
[361725716,1747731041835,-1834.61,0.00016712,2]
[361725717,1747731041845,-832.7,0.00016712,2]
[361725718,1747731041854,-4757.36,0.00016712,2]
[361725719,1747731041864,-420.0,0.00016712,2]
[361725720,1747731041873,-1280.71,0.00016712,2]
[361725721,1747731041883,-1301.44,0.00016712,2]
[361725722,1747731041892,-430.0,0.00016712,2]
[361725723,1747731041901,-470.0,0.00016712,2]
[361725724,1747731041911,-1033.93,0.00016712,2]
[361725725,1747731041920,-430.0,0.00016712,2]
[361725726,1747731041930,-574.71,0.00016712,2]
[361725727,1747731041939,-511.08,0.00016712,2]
[361725728,1747731041949,-430.0,0.00016712,2]
[361725729,1747731041960,-430.0,0.00016712,2]
[361725730,1747731041969,-430.0,0.00016712,2]
[361725731,1747731041979,-430.0,0.00016712,2]
[361725732,1747731041989,-493.54,0.00016712,2]
[361725733,1747731041999,-582.09,0.00016712,2]
[361725734,1747731042009,-470.0,0.00016712,2]
[361725735,1747731042018,-430.0,0.00016712,2]
[361725736,1747731042028,-2227.23,0.00016712,2]
[361725737,1747731042040,-865.79,0.00016712,2]
[361725738,1747731042050,-420.0,0.00016712,2]
[361725739,1747731042059,-430.0,0.00016712,2]
[361725740,1747731042069,-827.76,0.00016712,2]
[361725741,1747731042079,-813.4,0.00016712,2]
[361725742,1747731042090,-430.0,0.00016712,2]
[361725743,1747731042100,-430.0,0.00016712,2]
[361725744,1747731042110,-433.71416883,0.00016712,2]
[361725745,1747731042121,-430.0,0.00016712,2]
[361725746,1747731042131,-430.0,0.00016712,2]
[361725747,1747731042142,-260.35969492,0.00016712,2]
[361725748,1747731042344,-797.88030508,0.00016712,2]
[361725750,1747731042354,-812.09,0.00016712,2]
[361725751,1747731042364,-484.96,0.00016712,2]
[361725752,1747731042373,-490.29,0.00016712,2]
[361725753,1747731042382,-761.83,0.00016712,2]
[361725754,1747731042392,-325.77514038,0.00016712,2]
[361725755,1747731042401,-425.41311871,0.00016712,2]
[361725756,1747731042410,-477.65,0.00016712,2]
[361725757,1747731042420,-430.0,0.00016712,2]
[361725758,1747731042430,-1269.65,0.00016712,2]
[361725759,1747731042440,-4807.64,0.00016712,2]
[361725760,1747731042449,-430.0,0.00016712,2]
[361725761,1747731042459,-480.09434731,0.00016712,2]
[361725762,1747731042468,-270.0,0.00016712,2]
[361725763,1747731042477,-430.0,0.00016712,2]
[361725764,1747731042486,-420.0,0.00016712,2]
[361725766,1747731042496,-2070.17,0.00016712,2]
[361725768,1747731042505,-430.0,0.00016712,2]
[361725770,1747731042515,-884.2,0.00016712,2]
[361725771,1747731042525,-452.21,0.00016712,2]
[361725772,1747731042535,-430.0,0.00016712,2]
[361725773,1747731042545,-1471.5,0.00016712,2]
[361725774,1747731042555,-430.0,0.00016712,2]
[361725775,1747731042564,-151.0,0.00016712,2]
[361725776,1747731042574,-151.0,0.00016712,2]
[361725777,1747731042584,-151.0,0.00016712,2]
[361725778,1747731042595,-617.45,0.00016712,2]
[361725779,1747731042605,-541.81892531,0.00016712,2]
[361725780,1747731042614,-430.0,0.00016712,2]
[361725781,1747731042624,-430.0,0.00016712,2]
[361725782,1747731042634,-430.0,0.00016712,2]
[361725783,1747731042645,-3592.57,0.00016712,2]
[361725784,1747731042655,-796.97,0.00016712,2]
[361725785,1747731042665,-470.0,0.00016712,2]
[361725786,1747731042674,-430.0,0.00016712,2]
[361725787,1747731042684,-370.81126325,0.00016712,2]
[361725788,1747731042694,-430.0,0.00016712,2]
[361725789,1747731042704,-614.94,0.00016712,2]
[361725790,1747731042713,-547.0,0.00016721,2]
[361725791,1747731042722,-2235.0,0.00016721,2]
[361725792,1747731042732,-715.395,0.00016721,2]
[361725793,1747731042745,-404.0,0.00016721,2]
[361725794,1747731042755,-500.0,0.00016743,2]
[361725795,1747731042765,-5000.0,0.00016744,2]
[361725796,1747731042778,-5000.0,0.00016744,2]
[361725797,1747731042787,-5000.0,0.00016744,2]
[361725798,1747731042797,-5000.0,0.00016744,2]
[361725799,1747731042807,-5000.0,0.00016744,2]
[361725800,1747731042817,-5000.0,0.00016744,2]
[361725801,1747731042827,-207.4,0.00016744,2]
[361725802,1747731042837,-1331.63434004,0.00016744,2]
[361725803,1747731042846,-160.994108,0.00016744,2]
[361725804,1747731042856,-160.994108,0.00016744,2]
[361725805,1747731042866,-370.822144,0.00016744,2]
[361725807,1747731042876,-370.822144,0.00016744,2]
[361725808,1747731042885,-151.0,0.00016744,2]
[361725809,1747731042895,-161.225624,0.00016744,2]
[361725811,1747731042904,-161.225624,0.00016744,2]
[361725812,1747731042914,-151.0,0.00016744,2]
[361725813,1747731042923,-151.0,0.00016744,2]
[361725814,1747731042933,-151.0,0.00016755,2]
[361725815,1747731042943,-151.0,0.00016755,2]
[361725817,1747731042954,-205.417408,0.00016755,2]
[361725818,1747731042963,-205.417408,0.00016755,2]
[361725820,1747731042973,-160.0,0.0001676,2]
[361725822,1747731042982,-160.0,0.0001676,2]
[361725824,1747731042992,-160.0,0.00016761,2]
[361725825,1747731043001,-160.0,0.00016761,2]
[361725826,1747731043011,-894.64583333,0.00016761,2]
[361725827,1747731043021,-212.38718278,0.00016761,2]
[361725828,1747731043031,-314.48519801,0.00016761,2]
[361725829,1747731043041,-422.65292303,0.00016761,2]
[361725830,1747731043051,-160.0,0.00016761,2]
[361725831,1747731043060,-12640.66806714,0.00016761,2]
[361725832,1747731043068,-160.0,0.00016761,2]
[361725833,1747731043077,-500.0,0.00016899,2]
[361725834,1747731043087,-151.0,0.000169,2]
[361725835,1747731043096,-8018.06505701,0.000169,2]
[361725836,1747731043106,-960.445558,0.00016914,2]
[361725837,1747731043116,-258.053247,0.00016984,2]
[361725838,1747731043126,-258.053247,0.00016984,2]
[361725839,1747731043136,-500.0,0.00016985,2]
[361725840,1747731043146,-500.0,0.00016985,2]
[361725841,1747731043156,-500.0,0.00016985,2]
[361725842,1747731043166,-500.0,0.00016985,2]
[361725843,1747731043176,-500.0,0.00016985,2]
[361725844,1747731043186,-194.9648005,0.00016985,2]
[361725845,1747731043196,-160.8033442,0.00016985,2]
[361725846,1747731043205,-151.0,0.00016986,2]
[361725847,1747731043215,-151.0,0.00016986,2]
[361725848,1747731043225,-430.0,0.00016986,2]
[361725849,1747731043235,-430.0,0.00016986,2]
[361725850,1747731043244,-430.0,0.00016986,2]
[361725851,1747731043254,-430.0,0.00016986,2]
[361725852,1747731043264,-430.0,0.00016986,2]
[361725853,1747731043274,-258.053247,0.00016986,2]
[361725854,1747731043284,-160.994108,0.00016986,2]
[361725855,1747731043293,-160.994108,0.00016986,2]
[361725856,1747731043304,-258.053247,0.00016986,2]
[361725857,1747731043313,-160.994108,0.00016986,2]
[361725858,1747731043322,-160.994108,0.00016986,2]
[361725859,1747731043333,-451.14,0.00016986,2]
[361725860,1747731043343,-151.0,0.00016986,2]
[361725861,1747731043354,-151.0,0.00016986,2]
[361725862,1747731043364,-370.822144,0.00016986,2]
[361725863,1747731043374,-370.822144,0.00016986,2]
[361725864,1747731043384,-430.0,0.00016986,2]
[361725865,1747731043394,-370.822144,0.00016986,2]
[361725866,1747731043403,-370.822144,0.00016986,2]
[361725867,1747731043415,-430.0,0.00016986,2]
[361725868,1747731043425,-430.0,0.00016986,2]
[361725869,1747731043434,-430.0,0.00016986,2]
[361725870,1747731043444,-430.0,0.00016986,2]
[361725871,1747731043454,-430.0,0.00016986,2]
[361725872,1747731043464,-430.0,0.00016986,2]
[361725873,1747731043473,-430.0,0.00016986,2]
[361725874,1747731043483,-430.0,0.00016986,2]
[361725875,1747731043492,-430.0,0.00016986,2]
[361725876,1747731043502,-430.0,0.00016986,2]
[361725877,1747731043512,-430.0,0.00016986,2]
[361725878,1747731043522,-430.0,0.00016986,2]
[361725880,1747731043532,-792.04,0.00016986,2]
[361725881,1747731043542,-771.69,0.00016986,2]
[361725882,1747731043553,-430.0,0.00016986,2]
[361725883,1747731043562,-444.13,0.00016986,2]
[361725885,1747731043572,-446.59,0.00016986,2]
[361725886,1747731043581,-430.0,0.00016986,2]
[361725888,1747731043590,-490.0,0.00016986,2]
[361725890,1747731043599,-430.0,0.00016986,2]
[361725891,1747731043608,-490.0,0.00016986,2]
[361725892,1747731043617,-151.0,0.00016986,2]
[361725893,1747731043627,-430.0,0.00016986,2]
[361725894,1747731043637,-232.986299,0.00016986,2]
[361725895,1747731043646,-430.0,0.00016986,2]
[361725896,1747731043656,-430.0,0.00016986,2]
[361725897,1747731043666,-632.4,0.00016986,2]
[361725898,1747731043676,-430.0,0.00016986,2]
[361725899,1747731043686,-509.54,0.00016986,2]
[361725900,1747731043696,-430.0,0.00016986,2]
[361725901,1747731043706,-430.0,0.00016986,2]
[361725902,1747731043715,-430.0,0.00016986,2]
[361725903,1747731043725,-430.0,0.00016986,2]
[361725904,1747731043735,-490.0,0.00016986,2]
[361725905,1747731043744,-430.0,0.00016986,2]
[361725906,1747731043754,-430.0,0.00016986,2]
[361725907,1747731043764,-490.0,0.00016986,2]
[361725908,1747731043773,-534.41,0.00016986,2]
[361725909,1747731043784,-161.225624,0.00016986,2]
[361725910,1747731043793,-161.225624,0.00016986,2]
[361725911,1747731043804,-161.225624,0.00016986,2]
[361725912,1747731043814,-161.225624,0.00016986,2]
[361725913,1747731043824,-151.0,0.00016986,2]
[361725914,1747731043834,-151.0,0.00016986,2]
[361725915,1747731043843,-490.0,0.00016986,2]
[361725916,1747731043853,-430.0,0.00016986,2]
[361725917,1747731043863,-151.0,0.00016986,2]
[361725918,1747731043872,-151.0,0.00016986,2]
[361725919,1747731043881,-430.0,0.00016986,2]
[361725920,1747731043891,-151.0,0.00016986,2]
[361725921,1747731043901,-430.0,0.00016986,2]
[361725922,1747731043910,-151.0,0.00016986,2]
[361725923,1747731043920,-430.0,0.00016986,2]
[361725924,1747731043929,-430.0,0.00016986,2]
[361725925,1747731043939,-430.0,0.00016986,2]
[361725926,1747731043949,-430.0,0.00016986,2]
[361725927,1747731043958,-430.0,0.00016986,2]
[361725928,1747731043968,-486.68,0.00016986,2]
[361725929,1747731043977,-430.0,0.00016986,2]
[361725930,1747731043987,-430.0,0.00016986,2]
[361725931,1747731043996,-490.0,0.00016986,2]
[361725932,1747731044154,-490.0,0.00016986,2]
[361725933,1747731044163,-430.0,0.00016986,2]
[361725934,1747731044173,-430.0,0.00016986,2]
[361725935,1747731044182,-490.0,0.00016986,2]
[361725936,1747731044192,-430.0,0.00016986,2]
[361725937,1747731044201,-823.04,0.00016986,2]
[361725938,1747731044211,-430.0,0.00016986,2]
[361725939,1747731044221,-430.0,0.00016986,2]
[361725940,1747731044230,-430.0,0.00016986,2]
[361725941,1747731044239,-162.16195882,0.00016986,2]